Cogmind - Beta 13 @@@ ROGUE MODE // 2024.07.26 @ 23:16:26 Player: Sgt. SmokeWeed Result: Self-destructed Performance ------------- Evolutions (2) 1000 Regions Visited (7) 1400 Robots Destroyed (35) 175 Value Destroyed (1012) 1012 Prototype IDs (3) 60 Alien Tech Used (0) 0 Bonus (300) 300 TOTAL SCORE: 3947 Bonus ------- Aligned with FarCom 300 Cogmind --------- Core Integrity 219/550 Matter 110/300 Energy 85/100 System Corruption 0% Temperature Cool (0) Movement Core (200) Ox3 Location -8/Materials Parts ------- > --- POWER (1) -------- (None) > --- PROPULSION (2) --- (None) > --- UTILITY (4) ------ (None) > --- WEAPON (4) ------- Flak Cannon Flak Cannon > --- INVENTORY (5) ---- High-powered Shotgun Peak State ------------ > --- POWER ------------ Cooled Ion Engine > --- PROPULSION ------- Light Treads Light Treads > --- UTILITY ---------- Advanced Targeting Computer > --- WEAPON ----------- YOLO Cannon Flak Cannon Flak Cannon > --- INVENTORY -------- Flak Cannon [Rating: 34] Favorites ----------- Power Cooled Ion Engine Engine Cooled Ion Engine Propulsion Light Treads Treads Light Treads Utility Advanced Targeting Computer Processor Advanced Targeting Computer Weapon Flak Cannon Energy Gun Medium Laser Energy Cannon YOLO Cannon Ballistic Cannon Flak Cannon Launcher Grenade Launcher Build | -11 -10 -10 -9 -9 -9 -8 -8 ------- Run | Yrd Mat Min Mat Min Exi Min Mat Slots Evolved 4 | . . . 2 . . . 2 Power . | . . . . . . . . Propulsion . | . . . . . . . . Utility 2 | . . . . . . . 2 Weapon 2 | . . . 2 . . . . Parts Attached 22 | 5 6 . 7 . 1 1 2 Power 2 | 1 . . 1 . . . . Engine 2 | 1 . . 1 . . . . Core . | . . . . . . . . Reactor . | . . . . . . . . Propulsion 4 | 2 2 . . . . . . Treads 4 | 2 2 . . . . . . Leg . | . . . . . . . . Wheel . | . . . . . . . . Hover . | . . . . . . . . Flight . | . . . . . . . . Utility 1 | . . . . . . 1 . Device . | . . . . . . . . Storage . | . . . . . . . . Processor 1 | . . . . . . 1 . Hackware . | . . . . . . . . Protection . | . . . . . . . . Artifact . | . . . . . . . . Weapon 15 | 2 4 . 6 . 1 . 2 Energy Gun 4 | 2 2 . . . . . . Energy Cannon 3 | . . . 1 . 1 . 1 Ballistic Gun . | . . . . . . . . Ballistic Cannon 4 | . . . 3 . . . 1 Launcher 4 | . 2 . 2 . . . . Special Weapon . | . . . . . . . . Impact Weapon . | . . . . . . . . Slashing Weapon . | . . . . . . . . Piercing Weapon . | . . . . . . . . Special Melee Weapon . | . . . . . . . . Unidentified Prototypes 3 | . . . 2 . 1 . . Parts Lost 7 | . . . 1 . . 1 5 Power 1 | . . . . . . . 1 Propulsion 2 | . . . . . . 1 1 Utility 1 | . . . . . . . 1 Weapon 3 | . . . 1 . . . 2 Highest Loss Streak 5 | . . . 1 . . 1 5 To Critical Strikes . | . . . . . . . . Average Slot Usage (%) 65 | . 70 71 73 66 66 68 53 Engine 11 | . 14 14 11 11 11 11 8 Treads 19 | . 28 28 22 22 22 18 8 Processor 3 | . . . . . . 5 8 Energy Gun 4 | . 19 14 . . . . . Energy Cannon 5 | . . . . . 5 11 8 Ballistic Cannon 18 | . . . 31 33 27 22 17 Launcher 3 | . 8 14 9 . . . . Naked Turns . | . . . . . . . . Heaviest Build 38 | 8 10 10 29 26 38 38 38 Greatest Support 40 | 40 40 40 40 40 40 40 20 Greatest Overweight (x) 1 | . . . . . . 1 1 Average Overweight (x) . | . . . . . . . 1 Largest Inventory Capacity 5 | 5 5 5 5 5 5 5 5 Average Capacity 5 | 5 5 5 5 5 5 5 5 Most Carried 3 | . . . . . 1 2 3 Average Carried . | . . . . . . 1 1 Final Capacity 5 | 5 5 5 5 5 5 5 5 Final Carried 1 | . . . . . 1 1 1 Class Distribution -------------------- 42% | Skirmisher 30% | Gunner 26% | Mutant Dominant Class ---------------- Mutant | -10/Materials Mutant | -10/Mines Gunner | -9/Materials Gunner | -9/Mines Gunner | -9/Exiles Skirmisher | -8/Mines Skirmisher | -8/Materials Resources | -11 -10 -10 -9 -9 -9 -8 -8 ----------- Run | Yrd Mat Min Mat Min Exi Min Mat Matter Collected 556 | 169 14 41 52 39 . 94 147 Remotely . | . . . . . . . . Salvage Created 755 | . 137 20 149 14 . 100 335 Parts 57 | . 8 5 17 . . 16 11 Haulers Intercepted 2 | . . . 1 . . . 1 Recyclers Shooed 2 | . 1 . 1 . . . . Parts Field Recycled . | . . . . . . . . Retrieved Matter . | . . . . . . . . Parts Self-Destructed . | . . . . . . . . Prevented . | . . . . . . . . Kills | -11 -10 -10 -9 -9 -9 -8 -8 ------- Run | Yrd Mat Min Mat Min Exi Min Mat Combat Hostiles Destroyed 24 | . 5 3 3 1 . 4 8 Cannons 3 | . . . . 1 . 1 1 AOE 20 | . 5 3 3 . . 3 6 Classes Destroyed 12 | . 3 1 3 1 . 2 2 Builder 1 | . . . . . . . 1 Tunneler 4 | . . . . . . 3 1 Hauler 2 | . . . 1 . . . 1 Recycler 1 | . . . 1 . . . . Operator 2 | . 1 . . . . . 1 Watcher 2 | . 1 . 1 . . . . Swarmer 6 | . . 3 . . . 3 . Grunt 13 | . 5 . 2 . . . 6 Duelist 1 | . . . . . . . 1 Sentry 1 | . . . 1 . . . . Hunter 2 | . . . . . . 1 1 Assembled 1 | . . . . 1 . . . Best Kill Streak 6 | . 4 3 3 1 . 6 6 Combat Bots Only 4 | . 3 3 2 1 . 3 4 Max Kills in Single Turn 4 | . 2 2 3 1 . 3 4 Gunslinging . | . . . . . . . . Exploded 2 | . 2 2 2 . . 2 2 Melee . | . . . . . . . . Uniques/NPCs Destroyed . | . . . . . . . . Combat | -11 -10 -10 -9 -9 -9 -8 -8 -------- Run | Yrd Mat Min Mat Min Exi Min Mat Hostile Shots Fired 73 | . 13 4 18 7 . 16 15 Missed 24 | . 4 1 3 4 . 5 7 Damage Taken 910 | . 133 19 217 57 . 120 364 Core 142 | . 45 . 15 . . 10 72 Absorbed by Shields . | . . . . . . . . Core Remaining (%) 91 | 100 . 82 . . . 93 . Volleys Fired 35 | . 14 2 3 2 . 5 9 Largest 4 | . 2 2 4 3 . 2 3 Hottest 188 | . 80 80 162 132 . 100 188 Shots Fired 78 | . 26 4 11 6 . 6 25 Gun 16 | . 14 2 . . . . . Cannon 46 | . . . 9 6 . 6 25 Launcher 16 | . 12 2 2 . . . . Special . | . . . . . . . . Kinetic 34 | . . . 9 6 . 2 17 Thermal 28 | . 14 2 . . . 4 8 Explosive 16 | . 12 2 2 . . . . Electromagnetic . | . . . . . . . . Robot Hit Streak 5 | . 5 1 3 1 . 1 3 Robot Miss Streak 16 | . 3 3 7 11 . 9 16 Penetration Max . | . . . . . . . . Secondary Targets . | . . . . . . . . Shots Hit Robots 30 | . 9 1 9 3 . 1 7 Core Hits 50 | . 13 2 13 3 . 7 12 Critical Kills 2 | . . . . . . . 2 Critical Parts Destroyed . | . . . . . . . . Critical Strikes 4 | . 2 . . . . . 2 Burn 2 | . 2 . . . . . . Meltdown 2 | . . . . . . . 2 Melee Attacks . | . . . . . . . . Impact . | . . . . . . . . Slashing . | . . . . . . . . Piercing . | . . . . . . . . Sneak Attacks . | . . . . . . . . Combat Hostiles . | . . . . . . . . Follow-up Attacks . | . . . . . . . . Damage Inflicted 3091 | 4 496 185 269 34 . 593 1510 Guns 64 | . 51 13 . . . . . Cannons 737 | . . . 161 34 . 12 530 Explosions 2258 | . 438 172 98 . . 581 969 Melee . | . . . . . . . . Ramming 32 | 4 7 . 10 . . . 11 Kinetic 287 | . . . 161 34 . 12 80 Thermal 2064 | . 51 13 . . . 581 1419 Explosive 708 | . 438 172 98 . . . . Electromagnetic . | . . . . . . . . Impact . | . . . . . . . . Slashing . | . . . . . . . . Piercing . | . . . . . . . . Highest Corruption . | . . . . . . . . Average Corruption . | . . . . . . . . Corruption Purged . | . . . . . . . . Corruption Blocked . | . . . . . . . . Overload Shots . | . . . . . . . . Overflow Damage 410 | . 40 31 . . . 65 274 Projectiles 123 | . . . . . . . 123 Explosions 287 | . 40 31 . . . 65 151 Melee . | . . . . . . . . Knockbacks 5 | . . . 1 1 . 1 2 Impact . | . . . . . . . . Kinetic 5 | . . . 1 1 . 1 2 Secondary . | . . . . . . . . Self-Inflicted Damage 264 | . 3 . . . . . 261 Shots 5 | . 1 . . . . . 4 Rammed 8 | 2 3 . 2 . . . 1 Targets Rammed 10 | 2 3 . 4 . . . 1 Kicked . | . . . . . . . . Crushed 2 | . . . 2 . . . . Highest Temperature 207 | . 109 36 207 114 . 12 135 Average Temperature 50 | . 37 20 69 61 . 8 57 Received Heat Transfer 198 | . 87 . 84 . . . 27 Siege Activations . | . . . . . . . . Robots Corrupted . | . . . . . . . . Combat Hostiles . | . . . . . . . . Parts Fried . | . . . . . . . . Impact Corruptions . | . . . . . . . . Robots Melted 2 | . . . . . . . 2 Combat Hostiles 1 | . . . . . . . 1 Parts Melted 6 | . . . . . . 1 5 Heat Transferred 2323 | . 296 37 . . . 640 1350 Parts Sabotaged . | . . . . . . . . Parts Stolen . | . . . . . . . . Parts Stripped . | . . . . . . . . Power Chain Reactions . | . . . . . . . . Alert | -11 -10 -10 -9 -9 -9 -8 -8 ------- Run | Yrd Mat Min Mat Min Exi Min Mat Peak Influence 356 | . 215 165 227 84 . 171 356 Initial 84 | . . 83 64 84 . . . Average 136 | . 74 94 160 84 . 71 250 Maximum Alert Level 1 | . 1 . 1 . . . 1 Low Security (%) 72 | 100 83 100 53 100 . 100 39 Level 1 27 | . 16 . 46 . . . 60 Level 2 . | . . . . . . . . Level 3 . | . . . . . . . . Level 4 . | . . . . . . . . Level 5 . | . . . . . . . . High Security . | . . . . . . . . Max Security . | . . . . . . . . Squads Dispatched 2 | . 1 . . . . . 1 Investigation . | . . . . . . . . Extermination . | . . . . . . . . Reinforcement 2 | . 1 . . . . . 1 Assault . | . . . . . . . . Garrison . | . . . . . . . . Intercept . | . . . . . . . . Searches Triggered . | . . . . . . . . Construction Impeded 1 | . . . . . . . 1 Haulers Reinforced . | . . . . . . . . Active Scanning Responses . | . . . . . . . . Cargo Convoy Interrupts . | . . . . . . . . Stealth | -11 -10 -10 -9 -9 -9 -8 -8 --------- Run | Yrd Mat Min Mat Min Exi Min Mat Distress Signals 2 | . 1 . 1 . . . . Communications Jammed . | . . . . . . . . Distress Signals . | . . . . . . . . Times Spotted 36 | . 10 3 7 2 . 5 9 Peak Tracking Total 3 | . 2 3 2 2 . 3 3 Tactical Retreats 1 | . . . . . . 1 . Traps | -11 -10 -10 -9 -9 -9 -8 -8 ------- Run | Yrd Mat Min Mat Min Exi Min Mat Traps Triggered 1 | . 1 . . . . . . Indirectly . | . . . . . . . . Trap Hack Attempts . | . . . . . . . . Triggered . | . . . . . . . . Disarmed . | . . . . . . . . Reprogrammed . | . . . . . . . . Reused . | . . . . . . . . Traps Extracted . | . . . . . . . . Installed . | . . . . . . . . Triggered . | . . . . . . . . Machines | -11 -10 -10 -9 -9 -9 -8 -8 ---------- Run | Yrd Mat Min Mat Min Exi Min Mat Machines Disabled 11 | . 2 . 2 . . . 7 Max in Single Turn 4 | . 1 . 2 . . . 4 Machines Repaired . | . . . . . . . . Machines Dismantled . | . . . . . . . . Machines Sabotaged . | . . . . . . . . Overloaded Fab Kills . | . . . . . . . . Hacking | -11 -10 -10 -9 -9 -9 -8 -8 --------- Run | Yrd Mat Min Mat Min Exi Min Mat Machines Accessed 4 | . 1 . 1 . . . 2 Terminals 3 | . 1 . 1 . . . 1 Fabricators . | . . . . . . . . Repair Stations . | . . . . . . . . Recycling Units . | . . . . . . . . Scanalyzers 1 | . . . . . . . 1 Garrison Access . | . . . . . . . . Total Hacks 5 | . 2 . 1 . . . 2 Successful 2 | . 1 . . . . . 1 Failed 3 | . 1 . 1 . . . 1 Catastrophic 3 | . 1 . 1 . . . 1 Database Lockouts . | . . . . . . . . Manual 5 | . 2 . 1 . 1 . 1 Terminals 4 | . 2 . 1 . . . 1 Fabricators . | . . . . . . . . Repair Stations . | . . . . . . . . Recycling Units . | . . . . . . . . Scanalyzers 1 | . . . . . . . 1 Garrison Access . | . . . . . . . . Terminal Hacks 1 | . 1 . . . . . . Branch Access Points 1 | . 1 . . . . . . Fabricator Hacks . | . . . . . . . . Repair Station Hacks . | . . . . . . . . Recycling Unit Hacks . | . . . . . . . . Scanalyzer 1 | . . . . . . . 1 Insert Component 1 | . . . . . . . 1 Garrison Access Hacks . | . . . . . . . . Unauthorized Hacks . | . . . . . . . . Terminals . | . . . . . . . . Fabricators . | . . . . . . . . Repair Stations . | . . . . . . . . Recycling Units . | . . . . . . . . Scanalyzers . | . . . . . . . . Garrison Access . | . . . . . . . . Data Cores Recovered . | . . . . . . . . Used . | . . . . . . . . Hacking Detections 2 | . 1 . 1 . . . . Full Trace Events 1 | . 1 . . . . . . Feedback Events . | . . . . . . . . Feedback Blocked . | . . . . . . . . Robot Schematics Acquired . | . . . . . . . . Robots Built . | . . . . . . . . Authchips . | . . . . . . . . Time . | . . . . . . . . Total Robot Build Rating . | . . . . . . . . Part Schematics Acquired . | . . . . . . . . Parts Built . | . . . . . . . . Authchips . | . . . . . . . . Time . | . . . . . . . . Total Part Build Rating . | . . . . . . . . Parts Repaired . | . . . . . . . . Time . | . . . . . . . . Parts Recycled . | . . . . . . . . Recycled Matter . | . . . . . . . . Retrieved Matter . | . . . . . . . . Retrieved Components . | . . . . . . . . Parts Scanalyzed . | . . . . . . . . Part Schematics Acquired . | . . . . . . . . Parts Damaged . | . . . . . . . . Bothacking | -11 -10 -10 -9 -9 -9 -8 -8 ------------ Run | Yrd Mat Min Mat Min Exi Min Mat Used RIF Installer . | . . . . . . . . Robots Hacked . | . . . . . . . . Non-combat . | . . . . . . . . Combat . | . . . . . . . . Robot Hacks Applied . | . . . . . . . . Relay Couplers Released . | . . . . . . . . Fabnet Peak Effective % . | . . . . . . . . Robots Rewired . | . . . . . . . . Allies Hacked . | . . . . . . . . Hacks Repelled . | . . . . . . . . Allies | -11 -10 -10 -9 -9 -9 -8 -8 -------- Run | Yrd Mat Min Mat Min Exi Min Mat Total Allies . | . . . . . . . . Largest Group . | . . . . . . . . Highest-Rated Group . | . . . . . . . . Highest-Rated Ally . | . . . . . . . . Total Orders . | . . . . . . . . Ally Attacks . | . . . . . . . . Total Damage . | . . . . . . . . Kills . | . . . . . . . . Allies Corrupted . | . . . . . . . . Allies Melted . | . . . . . . . . Intel | -11 -10 -10 -9 -9 -9 -8 -8 ------- Run | Yrd Mat Min Mat Min Exi Min Mat Robot Analysis Total . | . . . . . . . . Derelict Logs Recovered 3 | . . 1 . 2 . . . Drone Launches . | . . . . . . . . Drone Recoveries . | . . . . . . . . Exploration | -11 -10 -10 -9 -9 -9 -8 -8 ------------- Run | Yrd Mat Min Mat Min Exi Min Mat Turns Passed 2379 | 71 398 142 280 114 345 430 599 Spaces Moved 1246 | 45 215 86 157 68 215 231 229 Core 13 | 10 . . . . . . 3 Treads 1233 | 35 215 86 157 68 215 231 226 Legs . | . . . . . . . . Wheels . | . . . . . . . . Hover . | . . . . . . . . Flight . | . . . . . . . . Fastest Speed 50 | 50 160 160 160 160 160 160 100 Average Speed 176 | 135 160 160 160 160 160 177 238 Slowest Speed 240 | 160 160 160 160 160 160 240 240 Overloaded Moves . | . . . . . . . . Propulsion Burnouts . | . . . . . . . . Robots Hopped . | . . . . . . . . Cave-ins Triggered . | . . . . . . . . Exploration Rate (%) 30 | 4 51 20 21 22 60 43 23 Regions Visited 7 Branch Regions 4 Pre-discovered Areas . | . . . . . . . . Known Exits Taken 2 | . 1 . . . . 1 . Unknown Exits Taken 5 | 1 . 1 1 1 1 . . Scrap Searched 4 | . . 1 . 1 . 2 . Spaces Dug . | . . . . . . . . Terrain Destroyed 281 | . 42 16 11 . . 54 158 Melee . | . . . . . . . . Projectile 8 | . . . . . . 4 4 AOE 273 | . 42 16 11 . . 50 154 Terrain Rammed . | . . . . . . . . Walls Destroyed . | . . . . . . . . Machines Disabled . | . . . . . . . . Actions | -11 -10 -10 -9 -9 -9 -8 -8 --------- Run | Yrd Mat Min Mat Min Exi Min Mat Total 1319 | 51 240 87 175 69 216 238 243 Wait . | . . . . . . . . Move 1239 | 44 214 85 156 67 214 230 229 Hop . | . . . . . . . . Pick Up 2 | . . . . . . 1 1 Fast Attach 20 | 5 6 . 7 . 1 1 . Attach 2 | . . . . . . . 2 Detach 2 | . . . . . 1 . 1 Swap . | . . . . . . . . Drop 9 | . 3 . 5 . . 1 . Fire 35 | . 14 2 3 2 . 5 9 Melee . | . . . . . . . . Ram . | . . . . . . . . Kick . | . . . . . . . . Crush 10 | 2 3 . 4 . . . 1 Escape Stasis . | . . . . . . . . Rewire . | . . . . . . . . Trap . | . . . . . . . . Miscellaneous . | . . . . . . . . Route ------- -11/Scrapyard -10/Materials -10/Mines -9/Materials (discovered 2 exits: Mat / [*Min]) -9/Mines -9/Exiles -8/Mines -8/Materials History --------- Turn | Location | Event 14 | -11/Scrapyard | Discovered new exit (range 14) 72 | -11/Scrapyard | Entered Materials 251 | -10/Materials | Identified exit to Mines 312 | -10/Materials | Build established: Mutant 470 | -10/Materials | Entered Mines 541 | -10/Mines | Learned 4 Materials zone layouts 589 | -10/Mines | Discovered new exit (range 5) 612 | -10/Mines | Entered Materials 612 | -9/Materials | Evolved 2 slots: Weapon x2 613 | -9/Materials | Identified exit to Materials 767 | -9/Materials | Discovered new exit (range 14) 892 | -9/Materials | Entered Mines 898 | -9/Mines | Met a Derelict bent on vengeance 911 | -9/Mines | Assembled infested the area 916 | -9/Mines | Assisted by a Guerilla fighting off Assembled 916 | -9/Mines | Learned 2 Materials zone layouts 922 | -9/Mines | Build established: Gunner 976 | -9/Mines | Learned Materials trap positions 998 | -9/Mines | Deemed a non-threat by the Exiles lab entrance 1000 | -9/Mines | Discovered new exit (range 5) 1006 | -9/Mines | Entered Exiles 1046 | -9/Exiles | Met 8R-AWN 1075 | -9/Exiles | Met EX-HEX 1131 | -9/Exiles | Met EX-BIN 1149 | -9/Exiles | Aligned with FarCom system 1150 | -9/Exiles | Given EX-Vault access code 1187 | -9/Exiles | Opened EX-Vault 1194 | -9/Exiles | Found Prototype Energy Cannon 1194 | -9/Exiles | Identified YOLO Cannon 1226 | -9/Exiles | Warned to stay clear of 0b10 Research branches 1277 | -9/Exiles | Met EX-DEC 1335 | -9/Exiles | Discovered new exit (range 12) 1351 | -9/Exiles | Left Exiles lab with YOLO Cannon 1351 | -9/Exiles | Entered Mines 1654 | -8/Mines | Build established: Skirmisher 1769 | -8/Mines | Discovered exit to Materials (range 6) 1781 | -8/Mines | Entered Materials 1781 | -8/Materials | Evolved 2 slots: Utility x2 1783 | -8/Materials | Loaded intel: 6 trap records 2372 | -8/Materials | Core integrity fell below 50% 2380 | -8/Materials | Self-destructed Last Messages --------------- U-05 Engineer builds a Wall. U-05 Engineer lays Concrete. Connecting with Terminal... K-01 Serf collects debris. A-02 Transporter suffers critical hit (Meltdown). U-05 Engineer lays Concrete. Destroyed Aluminum Leg. Destroyed Lgt. Nuclear Core. Destroyed Particle Gun. Destroyed Mining Laser. Destroyed Wheel. G-47 Trooper knocked back. Flak Cannon destroyed. YOLO Cannon suddenly explodes. Cld. Ion Engine destroyed. Adv. Targeting Computer destroyed. Lgt. Treads destroyed. Core damaged (-258). Destroyed Aluminum Leg. G-47 Trooper destroyed. Map ----- +----------------------------------------------------+ | ?????????????????????????????????????????????????? | | ?????????????????????????????????????????????????? | | ?????????????????????????????????????????????????? | | ?????????????????????????????????????????????????? | | ?????????????????????????????????????????????????? | | ?????????????????????????????????????????????????? | | ?????????????????????????????????????????????????? | | ?????????????????????????????????????????????????? | | ?????????????????????????????????????????????????? | | ?????????????????????????????????????????????????? | | ?????????????????????????????????????????????????? | | ?????????????????????????????????????????????????? | | ?????????????????????????????????????????????????? | | ??????????????????????????????????????Y??????????? | | ?????????????????????????????????????????????????? | | ???????????s?????????????????????????????????????? | | ???????????s?????????????????????????????????????? | | ?????????????????????????????????????????????????? | | ?????????????????????????#???????????????????????? | | ?????????????????????????#+#??##?????????????????? | | ?????????????????????????# ### #####???""????????? | | ????????????????????????## ; # """#??????? | | ????????????????????????#; ; ; #??????? | | ????????????????????????#; ; ;##+#?????????? | | ????????????????????????#; ??? | | ????????????????????????#@;;; % ;##+##????????? | | ????????????????????????## # ; ???????? | | ?????????????????????????#### # #??????? | | ?????????????????????????#####"%"###?? #??????? | | ?????????????????????????# w ##??????! ???????? | | ?????????????????????????# ######????????????????? | | ?????????????????????????# #?????????????????????? | | ?????????????????????????# #??????????Y??????????? | | ?????????????????????????# #?????????????????????? | | ???????????????# ]???? ?# #?????????????????????? | | ???????????????# ]] ??""?# #?????????????????????? | | ???????????????# ]] """?# #?????????????????????? | | ???????????????# """?# #?????????????????????? | | ???????????????# [ """ # #?????????????????????? | | ???????????????# """ # #?????????????????????? | | ????????????????? # #?????????????????????? | | ?????????????####+####"""# ###############???????? | | ?????????? # ! #???????? | | ?????????? [[[ # #???????? | | ?????????? [ [ # """ #???????? | | ???????????##########" ["""#### # """ #???????? | | ????????????????????#" " ?# # """ #####???? | | ????????????????????## " # # # ##### | | ?????????????????????# # + + """ #"""""""# | | ?????????????????????# #!!! # # """ # | +----------------------------------------------------+ Best States ------------- Heat Dissipation 31 Energy Generation 14 Energy Capacity 280 Matter Stores 226 Matter Capacity 300 Sight Range 16 Terrain Scan Density 10 Evasion (%) 50 Targeting Accuracy 8 Recoil Reduction 2 Item Schematics ----------------- None Robot Schematics ------------------ None Fabricated ------------ Nothing Alien Tech Used ----------------- None Achievements -------------- None Challenges ------------ None Game ------ Seed SupersonicRecyclingLaser Manual? 1 Play Time 00:12:33 Cumulative 46.7 hours Start 2024.07.26 @ 21:59:02 End 2024.07.26 @ 23:16:26 Sessions 3 Manual Loads 0 Difficulty Rogue Special Mode None Game No. 103 Rogue 33 Adventurer 70 Explorer 0 Win Type - Total 0 Types 0/0/0/0/0/0/0/0/0 Lore% 33 Gallery% 36 Achievement% 30 Wizard Run 0 Options --------- Layout 0 ASCII 0 Keyboard 0 Movement Mouse Keybinds 0 Fullscreen 1 Font 24/Smallcaps Map View 76x50 Zoom Use 0% Tactical HUD 0 Map Filters NONE Filters NONE Steam 1 RUN: aafaff57-0a1b-4def-a425-0e7f1a6fa909